Workbook

Sheet Fasi 1-5
B1: Fase 1 | C1: Piano Investimenti | D1: Importo | E1: Ammortamenti Annui
C2: Brevetti | D2: 500000 | E2: =+D2/20 -> 25000
C3: Impianti | D3: 1000000 | E3: =+D3/10 -> 100000
C4: Attrezzature | D4: 800000 | E4: =+D4/12 -> 66666.66667
C5: Totale | D5: =SUM(D2:D4) -> 2300000 | E5: =SUM(E2:E4) -> 191666.6667
D6: Rata | E6: Quota Capitale | F6: Interessi
C7: Finanziamento (7 anni, 5%) | D7: =+PMT(5%,7,D5) -> -397485.5824 | E7: =+D7-F7 -> -282485.5824 | F7: =+IPMT(5%,1,7,D5) -> -115000
B9: Fase 2 | C9: Costi Fissi Industriali | D9: Importo
C10: Costo del lavoro | D10: 200000
C11: Utenze | D11: 10000
C12: Manutenzioni | D12: 50000
C13: Assicurazioni | D13: 25000
C14: Consulenze | D14: 30000
C15: Totale | D15: =SUM(D10:D14) -> 315000
B17: Fase 3 | C17: Costi Variabili Unitari | D17: Importo | E17: Incidenza sul prezzo di vendita
C18: Ricavo per Metro Tessuto Greggio | D18: 3.5
C19: Costo del Filato | D19: 2.5 | E19: =+D19/D18 -> 0.7142857143
C20: Costo dell'energia | D20: 0.3 | E20: =+D20/D18 -> 0.08571428571
C21: Provvigioni | D21: 0.28 | E21: =+D21/D18 -> 0.08
C22: Imballaggi | D22: 0.1 | E22: =+D22/D18 -> 0.02857142857
C23: Tot. Costi Variabili | D23: =SUM(D19:D22) -> 3.18 | E23: =+D23/D18 -> 0.9085714286
C24: M.d.C. Unitario | D24: =+D18-D23 -> 0.32 | E24: =+D24/D18 -> 0.09142857143
B27: Fase 3b-3c | C27: Margine di Produzione | F27: Incidenza su magazzino M.P.
C28: Costo Industriale pieno per Metro T.G. | D28: 3.15 | F28: Incidenza su 100%
C29: =+C19 -> Costo del Filato | D29: =+D19 -> 2.5 | E29: =+D29/$D$28 -> 0.7936507937 | F29: =+E29/(E29+E31) -> 0.9615384615
C30: =+C20 -> Costo dell'energia | D30: =+D20 -> 0.3 | E30: =+D30/$D$28 -> 0.09523809524 | F30: 0
C31: =+C22 -> Imballaggi | D31: =+D22 -> 0.1 | E31: 0.03174603175 | F31: =+E31/(E31+E29) -> 0.03846153846
C32: =+C23 -> Tot. Costi Variabili | D32: =SUM(D29:D31) -> 2.9 | E32: =+D32/D28 -> 0.9206349206
C33: M.d.P. Unitario | D33: =+D28-D32 -> 0.25 | E33: =+D33/D28 -> 0.07936507937 | F33: =SUM(F29:F31) -> 1
B35: Ponderazione Margini per calcolo Valore della Produzione di Break Even | D35: PESI
C36: Peso Vendite | D36: 0.9259613025 | E36: =+(D46-D53)/D46 -> 0.9259613025 | F36: =+D36-E36 -> 0
C37: Peso Delta Magazzino Prodotto Finito | D37: =100%-D36 -> 0.07403869747
C38: M.d.c. Ponderato | D38: =+D36*E24+E33*D37 -> 0.09053540619
B40: Fase 4 | C40: Costi Fissi Operativi | D40: =+D15 -> 315000
B41: Stima primo break even | C41: Finanziamento Piano Investimenti | D41: =-D7 -> 397485.5824
C42: Interessi Passivi a breve (Fase 7b) | D42: 151759.7396 | E42: =+'Fase 7b'!C27 -> 151759.7396 | F42: =+D42-E42 -> 3.608874977e-09
B44: Uscite Finanziarie Fisse | C44: Somma Flussi in Uscita | D44: =SUM(D40:D43) -> 864245.322
B46: Valore della Produzione | C46: Break Even Finanziario | D46: =+D44/D38 -> 9545937.423 | E46: =+"(Flussi in uscita/M.d.C.% = "&TEXT(D38,"0,00%")&")" -> (Flussi in uscita/M.d.C.% = 9,05%)
B48: Fase 5
B49: Stima CCNC Attivo | C49: Acquisti M.P. Giornalieri | D49: =+(D46/360)*(((E29+E31)*D37)+((E19+E22)*D36)) -> 19860.01186
C50: Magazzino Mat. Prima | D50: =+D49*E50 -> 893700.5338 | E50: 45 | F50: gg
C52: Costo del Venduto Giornaliero | D52: =+(D15+E5+((((E19+E20+E22)*D36)+((E29+E30+E31)*D37))*D46))/360 -> 23558.9591
C53: Magazzino P. Finito | D53: =+D52*E53 -> 706768.773 | E53: 30 | F53: gg
C55: Fatturato Giornaliero | D55: =+(D46-D53)/270 -> 32737.66167 | E55: Fatturato/270
C56: Crediti V/Clienti | D56: =+D55*E56*(1+IVA!C2) -> 3594595.251 | E56: 90 | F56: gg
C58: Acquisti Giornalieri | D58: =+D49+(D12/360) -> 19998.90075
B59: Stima CCNC Passivo | C59: Debiti V/Fornitori | D59: =+D58*E59*(1+IVA!C2) -> 2195879.302 | E59: 90 | F59: gg
C61: CCNC | D61: =+D56+D50+D53-D59 -> 2999185.255

Sheet IVA
B1: Momento 0
B2: Aliquota Iva in vigore | C2: 0.22
B3: Iva su Investimenti | C3: =+'Fasi 1-5'!D5*C2 -> 506000 | D3: a Credito
C5: 1 | D5: 2 | E5: 3 | F5: 4 | G5: 5 | H5: 6 | I5: 7 | J5: 8 | K5: 9 | L5: 10 | M5: 11 | N5: 12
B6: Sviluppo Iva Mensile
B7: Credito | C7: =+D27+D33 -> 344464.3586 | D7: =+D27 -> 147850.2412 | E7: =+D7 -> 147850.2412 | F7: =+E7+D31 -> 165135.7265 | G7: 165135.7265 | H7: 165135.7265 | I7: 165135.7265 | J7: 165135.7265 | K7: 165135.7265 | L7: 165135.7265 | M7: 165135.7265 | N7: 165135.7265
B8: Debito | C8: 0 | D8: 0 | E8: 0 | F8: =+D14 -> 216068.567 | G8: =+F8 -> 216068.567 | H8: 216068.567 | I8: 216068.567 | J8: 216068.567 | K8: 216068.567 | L8: 216068.567 | M8: 216068.567 | N8: 216068.567
B9: Saldo a Credito | C9: =+C3+C7-C8 -> 850464.3586 | D9: =+C9+D7-D8 -> 998314.5998 | E9: =+D9+E7-E8 -> 1146164.841 | F9: =+E9+F7-F8 -> 1095232 | G9: 1044299.16 | H9: 993366.3195 | I9: 942433.479 | J9: 891500.6385 | K9: 840567.7981 | L9: 789634.9576 | M9: 738702.1171 | N9: 687769.2766
E10: Picco del credito Iva | H10: Picco del cap. circolante
C12: Fatturato | D12: =+'Fase 7 - 7c-d'!D3 -> 8839168.65
C13: Fatturato/9 | D13: =+D12/9 -> 982129.85 | E13: (Le vendite partono in differita)
C14: =+"Fatturato/9*"&C2 -> Fatturato/9*0,22 | D14: =+D13*C2 -> 216068.567
B16: Acquisti ad Iva Fissi | C16: Utenze | D16: =+'Fasi 1-5'!D11 -> 10000
C17: Manutenzioni | D17: =+'Fasi 1-5'!D12 -> 50000
C18: Consulenze | D18: =+'Fasi 1-5'!D14 -> 30000
B20: Acquisti ad Iva Variabili | C20: Costo del Filato | D20: =-'Fase 7 - 7c-d'!D7 -> 7733946.927
C21: Costo dell'energia | D21: =-'Fase 7 - 7c-d'!D8 -> 824954.3389
C22: Imballaggi | D22: =-'Fase 7 - 7c-d'!D10 -> 309357.8771
C23: Acquisti per magazzino M.P. | D23: =+'Fasi 1-5'!D50 -> 893700.5338 | E23: (Immediati)
C25: Totale (netto magazzino M.P.) | D25: =SUM(D16:D22)-D23 -> 8064558.609
C26: Totale/12 | D26: =+D25/12 -> 672046.5507
C27: =+"Totale/12*"&C2 -> Totale/12*0,22 | D27: =+D26*C2 -> 147850.2412
C29: Provvigioni | D29: =-'Fase 7 - 7c-d'!D9 -> 707133.492
C30: Provvigioni/9 | D30: =+D29/9 -> 78570.388 | E30: (su nove mesi! Seguono il fatturato)
C31: Provvigioni/9*0,22 | D31: =+D30*C2 -> 17285.48536
C33: Iva su Acquisto magazzino M.P. | D33: =+D23*C2 -> 196614.1174 | E33: (caricata su mese 1)

Sheet Fase 6 Budget di Cassa
B2: 1 | C2: 2 | D2: 3 | E2: 4 | F2: 5 | G2: 6 | H2: 7 | I2: 8 | J2: 9 | K2: 10 | L2: 11 | M2: 12 | N2: TOTALE | O2: TOTALE SENZA IVA (OVE APPLICABILE)
A3: Entrate
A4: Incassi Vendite (iva inclusa) | H4: =+IVA!D13*(1+IVA!$C$2) -> 1198198.417 | I4: =+H4 -> 1198198.417 | J4: =+I4 -> 1198198.417 | K4: 1198198.417 | L4: 1198198.417 | M4: 1198198.417 | N4: =SUM(B4:M4) -> 7189190.502 | O4: =+N4/(1+IVA!$C$2) -> 5892779.1
A5: Equity Capital | B5: =+'Fase 6 SP'!G12 -> 500000 | N5: =SUM(B5:M5) -> 500000 | O5: =+N5 -> 500000
A6: Finanziamento Investimenti | B6: =+'Fasi 1-5'!D5 -> 2300000 | N6: 2300000 | O6: =+N6 -> 2300000
A7: Totale Entrate | B7: =SUM(B4:B6) -> 2800000 | C7: =SUM(C4:C6) -> 0 | D7: 0 | E7: 0 | F7: 0 | G7: 0 | H7: 1198198.417 | I7: 1198198.417 | J7: 1198198.417 | K7: 1198198.417 | L7: 1198198.417 | M7: 1198198.417 | N7: 9989190.502 | O7: 8692779.1
A9: Uscite | N9: =SUM(B9:M9) -> 0 | O9: =+N9/(1+IVA!$C$2) -> 0
A10: Investimenti | B10: =+'Fasi 1-5'!D5*(1+IVA!C2) -> 2806000 | N10: 2806000 | O10: =+N10/(1+IVA!$C$2) -> 2300000
A11: Finanziamento quota Capitale | B11: =-'Fasi 1-5'!E7/12 -> 23540.4652 | C11: =+B11 -> 23540.4652 | D11: =+C11 -> 23540.4652 | E11: 23540.4652 | F11: 23540.4652 | G11: 23540.4652 | H11: 23540.4652 | I11: 23540.4652 | J11: 23540.4652 | K11: 23540.4652 | L11: 23540.4652 | M11: 23540.4652 | N11: 282485.5824 | O11: =+N11 -> 282485.5824
A12: Finanziamento quota Interessi | B12: =-'Fasi 1-5'!F7/12 -> 9583.333333 | C12: =+B12 -> 9583.333333 | D12: =+C12 -> 9583.333333 | E12: 9583.333333 | F12: 9583.333333 | G12: 9583.333333 | H12: 9583.333333 | I12: 9583.333333 | J12: 9583.333333 | K12: 9583.333333 | L12: 9583.333333 | M12: 9583.333333 | N12: 115000 | O12: =+N12 -> 115000
A13: Interessi su PFN a breve | M13: =+'Fase 7b'!C27 -> 151759.7396 | N13: 151759.7396 | O13: =+N13 -> 151759.7396
N14: 0 | O14: =+N14/(1+IVA!$C$2) -> 0
A15: =+'Fasi 1-5'!C10 -> Costo del lavoro | B15: =+'Fasi 1-5'!D10/12 -> 16666.66667 | C15: =+B15 -> 16666.66667 | D15: =+C15 -> 16666.66667 | E15: =+D15 -> 16666.66667 | F15: 16666.66667 | G15: 16666.66667 | H15: 16666.66667 | I15: 16666.66667 | J15: 16666.66667 | K15: 16666.66667 | L15: 16666.66667 | M15: 16666.66667 | N15: 200000 | O15: =+N15 -> 200000
A16: =+'Fasi 1-5'!C11 -> Utenze | B16: =+'Fasi 1-5'!D11/12*(1+IVA!C2) -> 1016.666667 | C16: =+B16 -> 1016.666667 | D16: 1016.666667 | E16: 1016.666667 | F16: 1016.666667 | G16: 1016.666667 | H16: 1016.666667 | I16: 1016.666667 | J16: 1016.666667 | K16: 1016.666667 | L16: 1016.666667 | M16: 1016.666667 | N16: 12200 | O16: =+N16/(1+IVA!$C$2) -> 10000
A17: =+'Fasi 1-5'!C12 -> Manutenzioni | E17: =+'Fasi 1-5'!D12/12*(1+IVA!C2) -> 5083.333333 | F17: =+E17 -> 5083.333333 | G17: 5083.333333 | H17: 5083.333333 | I17: 5083.333333 | J17: 5083.333333 | K17: 5083.333333 | L17: 5083.333333 | M17: 5083.333333 | N17: 45750 | O17: =+N17/(1+IVA!$C$2) -> 37500 | Q17: =+E17/30*90 -> 15250
A18: =+'Fasi 1-5'!C13 -> Assicurazioni | B18: =+'Fasi 1-5'!D13 -> 25000 | N18: 25000 | O18: =+N18 -> 25000
A19: =+'Fasi 1-5'!C14 -> Consulenze | B19: =+'Fasi 1-5'!D14/12*(1+IVA!C2) -> 3050 | C19: 3050 | D19: 3050 | E19: 3050 | F19: 3050 | G19: 3050 | H19: 3050 | I19: 3050 | J19: 3050 | K19: 3050 | L19: 3050 | M19: 3050 | N19: 36600 | O19: =+N19/(1+IVA!$C$2) -> 30000
N20: 0 | O20: =+N20/(1+IVA!$C$2) -> 0
A21: =+'Fasi 1-5'!C19 -> Costo del Filato | E21: =+(IVA!D20-(IVA!D23*'Fasi 1-5'!F29))/12*(1+IVA!C2) -> 698919.6482 | F21: =+E21 -> 698919.6482 | G21: =+F21 -> 698919.6482 | H21: 698919.6482 | I21: 698919.6482 | J21: 698919.6482 | K21: 698919.6482 | L21: 698919.6482 | M21: 698919.6482 | N21: =SUM(C21:M21) -> 6290276.834 | O21: =+N21/(1+IVA!$C$2) -> 5155964.618 | Q21: =+E21/30*90 -> 2096758.945
A22: =+'Fasi 1-5'!C20 -> Costo dell'energia | B22: =+IVA!D21/12*(1+IVA!C2) -> 83870.35778 | C22: =+B22 -> 83870.35778 | D22: =+C22 -> 83870.35778 | E22: 83870.35778 | F22: 83870.35778 | G22: 83870.35778 | H22: 83870.35778 | I22: 83870.35778 | J22: 83870.35778 | K22: 83870.35778 | L22: 83870.35778 | M22: 83870.35778 | N22: 1006444.293 | O22: =+N22/(1+IVA!$C$2) -> 824954.3389
A23: =+'Fasi 1-5'!C21 -> Provvigioni | E23: =+IVA!D29/9*(1+IVA!C2) -> 95855.87336 | F23: =+E23 -> 95855.87336 | G23: =+F23 -> 95855.87336 | H23: 95855.87336 | I23: 95855.87336 | J23: 95855.87336 | K23: 95855.87336 | L23: 95855.87336 | M23: 95855.87336 | N23: 862702.8602 | O23: =+N23/(1+IVA!$C$2) -> 707133.492
A24: =+'Fasi 1-5'!C22 -> Imballaggi | E24: =+(IVA!D22-(IVA!D23*'Fasi 1-5'!F31))/12*(1+IVA!C2) -> 27956.78593 | F24: =+E24 -> 27956.78593 | G24: =+F24 -> 27956.78593 | H24: 27956.78593 | I24: 27956.78593 | J24: 27956.78593 | K24: 27956.78593 | L24: 27956.78593 | M24: 27956.78593 | N24: =SUM(C24:M24) -> 251611.0734 | O24: =+N24/(1+IVA!$C$2) -> 206238.5847 | Q24: =+E24/30*90 -> 83870.35778
A25: =+IVA!C23 -> Acquisti per magazzino M.P. | E25: =+IVA!D23*(1+IVA!C2) -> 1090314.651 | N25: 1090314.651 | O25: =+N25/(1+IVA!$C$2) -> 893700.5338
A26: Totale Uscite | B26: =SUM(B10:B25) -> 2968727.49 | C26: =SUM(C10:C25) -> 137727.4897 | D26: 137727.4897 | E26: 2055857.782 | F26: 965543.1305 | G26: 965543.1305 | H26: 965543.1305 | I26: 965543.1305 | J26: 965543.1305 | K26: 965543.1305 | L26: 965543.1305 | M26: =SUM(M10:M25) -> 1117302.87 | N26: 13176145.03 | O26: =SUM(O10:O25) -> 10939736.89 | Q26: =SUM(Q17:Q24) -> 2195879.302
A28: Saldo Entrate-Uscite | B28: =+B7-B26 -> -168727.4897 | C28: =+B28+C7-C26 -> -306454.9793 | D28: -444182.469 | E28: -2500040.251 | F28: -3465583.381 | G28: -4431126.512 | H28: -4198471.225 | I28: -3965815.938 | J28: -3733160.652 | K28: -3500505.365 | L28: -3267850.079 | M28: -3186954.532 | N28: =+N7-N26 -> -3186954.532 | O28: =+O7-O26 -> -2246957.789
B30: =+IF(B28=MIN($B$28:$M$28),B28,0) -> 0 | C30: =+IF(C28=MIN($B$28:$M$28),C28,0) -> 0 | D30: 0 | E30: 0 | F30: 0 | G30: -4431126.512 | H30: 0 | I30: 0 | J30: 0 | K30: 0 | L30: 0 | M30: 0
B31: =+IF(B30<>0,"Picco esigenze di liquidità","") ->  | C31: =+IF(C30<>0,"Picco esigenze di liquidità","") ->  | G31: Picco esigenze di liquidità
A33: Double Check Iva
A34: =+A10 -> Investimenti | B34: =+B10/(1+IVA!$C$2)*IVA!$C$2 -> 506000 | C34: =+C10/(1+IVA!$C$2)*IVA!$C$2 -> 0 | D34: =+D10/(1+IVA!$C$2)*IVA!$C$2 -> 0 | E34: =+E10/(1+IVA!$C$2)*IVA!$C$2 -> 0 | F34: =+F10/(1+IVA!$C$2)*IVA!$C$2 -> 0 | G34: =+G10/(1+IVA!$C$2)*IVA!$C$2 -> 0 | H34: =+H10/(1+IVA!$C$2)*IVA!$C$2 -> 0 | I34: =+I10/(1+IVA!$C$2)*IVA!$C$2 -> 0 | J34: =+J10/(1+IVA!$C$2)*IVA!$C$2 -> 0 | K34: =+K10/(1+IVA!$C$2)*IVA!$C$2 -> 0 | L34: =+L10/(1+IVA!$C$2)*IVA!$C$2 -> 0 | M34: =+M10/(1+IVA!$C$2)*IVA!$C$2 -> 0
A35: =+A11 -> Finanziamento quota Capitale
A36: =+A12 -> Finanziamento quota Interessi
A37: =+A13 -> Interessi su PFN a breve
A39: =+A15 -> Costo del lavoro
A40: =+A16 -> Utenze | B40: =+B16/(1+IVA!$C$2)*IVA!$C$2 -> 183.3333333 | C40: =+C16/(1+IVA!$C$2)*IVA!$C$2 -> 183.3333333 | D40: =+D16/(1+IVA!$C$2)*IVA!$C$2 -> 183.3333333 | E40: =+E16/(1+IVA!$C$2)*IVA!$C$2 -> 183.3333333 | F40: =+F16/(1+IVA!$C$2)*IVA!$C$2 -> 183.3333333 | G40: =+G16/(1+IVA!$C$2)*IVA!$C$2 -> 183.3333333 | H40: =+H16/(1+IVA!$C$2)*IVA!$C$2 -> 183.3333333 | I40: =+I16/(1+IVA!$C$2)*IVA!$C$2 -> 183.3333333 | J40: =+J16/(1+IVA!$C$2)*IVA!$C$2 -> 183.3333333 | K40: =+K16/(1+IVA!$C$2)*IVA!$C$2 -> 183.3333333 | L40: =+L16/(1+IVA!$C$2)*IVA!$C$2 -> 183.3333333 | M40: =+M16/(1+IVA!$C$2)*IVA!$C$2 -> 183.3333333
A41: =+A17 -> Manutenzioni | B41: =+E17/(1+IVA!$C$2)*IVA!$C$2 -> 916.6666667 | C41: =+F17/(1+IVA!$C$2)*IVA!$C$2 -> 916.6666667 | D41: =+G17/(1+IVA!$C$2)*IVA!$C$2 -> 916.6666667 | E41: =+H17/(1+IVA!$C$2)*IVA!$C$2 -> 916.6666667 | F41: =+I17/(1+IVA!$C$2)*IVA!$C$2 -> 916.6666667 | G41: =+J17/(1+IVA!$C$2)*IVA!$C$2 -> 916.6666667 | H41: =+K17/(1+IVA!$C$2)*IVA!$C$2 -> 916.6666667 | I41: =+L17/(1+IVA!$C$2)*IVA!$C$2 -> 916.6666667 | J41: =+M17/(1+IVA!$C$2)*IVA!$C$2 -> 916.6666667 | K41: =+J41 -> 916.6666667 | L41: =+K41 -> 916.6666667 | M41: =+L41 -> 916.6666667
A42: =+A18 -> Assicurazioni
A43: =+A19 -> Consulenze | B43: =+B19/(1+IVA!$C$2)*IVA!$C$2 -> 550 | C43: =+C19/(1+IVA!$C$2)*IVA!$C$2 -> 550 | D43: =+D19/(1+IVA!$C$2)*IVA!$C$2 -> 550 | E43: =+E19/(1+IVA!$C$2)*IVA!$C$2 -> 550 | F43: =+F19/(1+IVA!$C$2)*IVA!$C$2 -> 550 | G43: =+G19/(1+IVA!$C$2)*IVA!$C$2 -> 550 | H43: =+H19/(1+IVA!$C$2)*IVA!$C$2 -> 550 | I43: =+I19/(1+IVA!$C$2)*IVA!$C$2 -> 550 | J43: =+J19/(1+IVA!$C$2)*IVA!$C$2 -> 550 | K43: =+K19/(1+IVA!$C$2)*IVA!$C$2 -> 550 | L43: =+L19/(1+IVA!$C$2)*IVA!$C$2 -> 550 | M43: =+M19/(1+IVA!$C$2)*IVA!$C$2 -> 550
A45: =+A21 -> Costo del Filato | B45: =+E21/(1+IVA!$C$2)*IVA!$C$2 -> 126034.6907 | C45: =+F21/(1+IVA!$C$2)*IVA!$C$2 -> 126034.6907 | D45: =+G21/(1+IVA!$C$2)*IVA!$C$2 -> 126034.6907 | E45: =+H21/(1+IVA!$C$2)*IVA!$C$2 -> 126034.6907 | F45: =+I21/(1+IVA!$C$2)*IVA!$C$2 -> 126034.6907 | G45: =+J21/(1+IVA!$C$2)*IVA!$C$2 -> 126034.6907 | H45: =+K21/(1+IVA!$C$2)*IVA!$C$2 -> 126034.6907 | I45: =+L21/(1+IVA!$C$2)*IVA!$C$2 -> 126034.6907 | J45: =+M21/(1+IVA!$C$2)*IVA!$C$2 -> 126034.6907 | K45: =+J45 -> 126034.6907 | L45: =+K45 -> 126034.6907 | M45: =+L45 -> 126034.6907
A46: =+A22 -> Costo dell'energia | B46: =+B22/(1+IVA!$C$2)*IVA!$C$2 -> 15124.16288 | C46: =+C22/(1+IVA!$C$2)*IVA!$C$2 -> 15124.16288 | D46: =+D22/(1+IVA!$C$2)*IVA!$C$2 -> 15124.16288 | E46: =+E22/(1+IVA!$C$2)*IVA!$C$2 -> 15124.16288 | F46: =+F22/(1+IVA!$C$2)*IVA!$C$2 -> 15124.16288 | G46: =+G22/(1+IVA!$C$2)*IVA!$C$2 -> 15124.16288 | H46: =+H22/(1+IVA!$C$2)*IVA!$C$2 -> 15124.16288 | I46: =+I22/(1+IVA!$C$2)*IVA!$C$2 -> 15124.16288 | J46: =+J22/(1+IVA!$C$2)*IVA!$C$2 -> 15124.16288 | K46: =+K22/(1+IVA!$C$2)*IVA!$C$2 -> 15124.16288 | L46: =+L22/(1+IVA!$C$2)*IVA!$C$2 -> 15124.16288 | M46: =+M22/(1+IVA!$C$2)*IVA!$C$2 -> 15124.16288
A47: =+A23 -> Provvigioni | B47: =+B23/(1+IVA!$C$2)*IVA!$C$2 -> 0 | C47: =+C23/(1+IVA!$C$2)*IVA!$C$2 -> 0 | D47: =+D23/(1+IVA!$C$2)*IVA!$C$2 -> 0 | E47: =+E23/(1+IVA!$C$2)*IVA!$C$2 -> 17285.48536 | F47: =+F23/(1+IVA!$C$2)*IVA!$C$2 -> 17285.48536 | G47: =+G23/(1+IVA!$C$2)*IVA!$C$2 -> 17285.48536 | H47: =+H23/(1+IVA!$C$2)*IVA!$C$2 -> 17285.48536 | I47: =+I23/(1+IVA!$C$2)*IVA!$C$2 -> 17285.48536 | J47: =+J23/(1+IVA!$C$2)*IVA!$C$2 -> 17285.48536 | K47: =+K23/(1+IVA!$C$2)*IVA!$C$2 -> 17285.48536 | L47: =+L23/(1+IVA!$C$2)*IVA!$C$2 -> 17285.48536 | M47: =+M23/(1+IVA!$C$2)*IVA!$C$2 -> 17285.48536
A48: =+A24 -> Imballaggi | B48: =+E24/(1+IVA!$C$2)*IVA!$C$2 -> 5041.387626 | C48: =+F24/(1+IVA!$C$2)*IVA!$C$2 -> 5041.387626 | D48: =+G24/(1+IVA!$C$2)*IVA!$C$2 -> 5041.387626 | E48: =+H24/(1+IVA!$C$2)*IVA!$C$2 -> 5041.387626 | F48: =+I24/(1+IVA!$C$2)*IVA!$C$2 -> 5041.387626 | G48: =+J24/(1+IVA!$C$2)*IVA!$C$2 -> 5041.387626 | H48: =+K24/(1+IVA!$C$2)*IVA!$C$2 -> 5041.387626 | I48: =+L24/(1+IVA!$C$2)*IVA!$C$2 -> 5041.387626 | J48: =+M24/(1+IVA!$C$2)*IVA!$C$2 -> 5041.387626 | K48: =+J48 -> 5041.387626 | L48: 5041.387626 | M48: 5041.387626
A49: =+A25 -> Acquisti per magazzino M.P. | B49: =+E25/(1+IVA!$C$2)*IVA!$C$2 -> 196614.1174 | C49: =+F25/(1+IVA!$C$2)*IVA!$C$2 -> 0 | D49: =+G25/(1+IVA!$C$2)*IVA!$C$2 -> 0 | E49: =+H25/(1+IVA!$C$2)*IVA!$C$2 -> 0 | F49: =+I25/(1+IVA!$C$2)*IVA!$C$2 -> 0 | G49: =+J25/(1+IVA!$C$2)*IVA!$C$2 -> 0 | H49: =+K25/(1+IVA!$C$2)*IVA!$C$2 -> 0 | I49: =+L25/(1+IVA!$C$2)*IVA!$C$2 -> 0 | J49: =+M25/(1+IVA!$C$2)*IVA!$C$2 -> 0 | K49: 0 | L49: 0 | M49: 0
A51: Tot. Iva a Credito | B51: =SUM(B34:B49) -> 850464.3586 | C51: =+B51+SUM(C34:C49) -> 998314.5998 | D51: =+C51+SUM(D34:D49) -> 1146164.841 | E51: 1311300.567 | F51: 1476436.294 | G51: 1641572.02 | H51: =+G51+SUM(H34:H49) -> 1806707.747 | I51: 1971843.474 | J51: 2136979.2 | K51: 2302114.927 | L51: 2467250.653 | M51: 2632386.38
A53: Iva a Debito
A54: =+A4 -> Incassi Vendite (iva inclusa) | E54: =+H4/(1+IVA!$C$2)*IVA!$C$2 -> 216068.567 | F54: =+I4/(1+IVA!$C$2)*IVA!$C$2 -> 216068.567 | G54: =+J4/(1+IVA!$C$2)*IVA!$C$2 -> 216068.567 | H54: =+K4/(1+IVA!$C$2)*IVA!$C$2 -> 216068.567 | I54: =+L4/(1+IVA!$C$2)*IVA!$C$2 -> 216068.567 | J54: =+M4/(1+IVA!$C$2)*IVA!$C$2 -> 216068.567 | K54: =+J54 -> 216068.567 | L54: =+K54 -> 216068.567 | M54: =+L54 -> 216068.567
A56: Tot. Iva a Debito | E56: =+E54 -> 216068.567 | F56: =+E56+F54 -> 432137.134 | G56: =+F56+G54 -> 648205.701 | H56: =+G56+H54 -> 864274.268 | I56: 1080342.835 | J56: 1296411.402 | K56: 1512479.969 | L56: 1728548.536 | M56: 1944617.103
A58: SALDO IVA | B58: =+B51-B56 -> 850464.3586 | C58: =+C51-C56 -> 998314.5998 | D58: 1146164.841 | E58: 1095232 | F58: 1044299.16 | G58: 993366.3195 | H58: =+H51-H56 -> 942433.479 | I58: 891500.6385 | J58: 840567.7981 | K58: 789634.9576 | L58: 738702.1171 | M58: 687769.2766

Sheet Fase 6 CE
B1: Fase 6 | C1: Conto Economico al Momento 0 | F1: Mesi dallo start up
F2: 6
C3: Fatturato | D3: =+IVA!D13*('Fase 6 CE'!F2-3) -> 2946389.55
C4: Variazione Magazzino P.F. | D4: =+'Fasi 1-5'!D53 -> 706768.773
C5: Valore della Produzione | D5: =+D3+D4 -> 3653158.323
C7: =+'Fasi 1-5'!C19 -> Costo del Filato | D7: =-'Fase 6 Budget di Cassa'!E21*'Fase 6 CE'!F2/(1+IVA!C2)-IVA!D23*'Fasi 1-5'!F29 -> -4296637.182
C8: =+'Fasi 1-5'!C20 -> Costo dell'energia | D8: =-'Fase 6 Budget di Cassa'!B22*'Fase 6 CE'!F2/(1+IVA!C2) -> -412477.1694
C9: =+'Fasi 1-5'!C21 -> Provvigioni | D9: =-'Fase 6 Budget di Cassa'!E23*('Fase 6 CE'!F2-3)/(1+IVA!C2) -> -235711.164
C10: =+'Fasi 1-5'!C22 -> Imballaggi | D10: =-'Fase 6 Budget di Cassa'!E24*'Fase 6 CE'!F2/(1+IVA!C2)-'Fasi 1-5'!F31*IVA!D23 -> -171865.4873
C11: Variazione Magazzino M.P. | D11: =+IVA!D23 -> 893700.5338
C12: Costi Variabili | D12: =SUM(D7:D11) -> -4222990.468
C13: =+'Fasi 1-5'!C10 -> Costo del lavoro | D13: =-'Fase 6 Budget di Cassa'!B15*F2 -> -100000
C14: =+'Fasi 1-5'!C11 -> Utenze | D14: =-'Fase 6 Budget di Cassa'!B16*F2/(1+IVA!C2) -> -5000
C15: =+'Fasi 1-5'!C12 -> Manutenzioni | D15: =-'Fase 6 Budget di Cassa'!E17/(1+IVA!C2)*F2 -> -25000
C16: =+'Fasi 1-5'!C13 -> Assicurazioni | D16: =-'Fase 6 Budget di Cassa'!B18*F2 -> -150000
C17: =+'Fasi 1-5'!C14 -> Consulenze | D17: =-'Fase 6 Budget di Cassa'!B19*F2/(1+IVA!C2) -> -15000
C18: Costi Fissi | D18: =SUM(D13:D17) -> -295000
C19: EBITDA/MOL | D19: =+D3+D12+D18+D4 -> -864832.1455
C20: Ammortamenti | D20: =-'Fasi 1-5'!E5/12*F2 -> -95833.33333
C21: EBIT/Red.Operativo | D21: =+D19+D20 -> -960665.4788
C22: Interessi passivi a lungo | D22: =+'Fasi 1-5'!F7/12*F2 -> -57500
B25: Fase 7b | C25: Interessi passivi a breve | D25: 0 | E25: 0.05 | F25: su PFN a Breve Iniziale
C26: Utile Ante Imposte | D26: =+D21+D22+D25 -> -1018165.479
B29: Fase 7c | C29: Imposte | F29: IRES | G29: 0.24
C30: Utile Netto | D30: =+D26+D29 -> -1018165.479 | F30: IRAP | G30: 0.039

Sheet Fase 6 SP
B1: Fase 6 | C1: Investimenti e Coperture al Momento 0
C3: Attivo Immobilizzato | D3: =SUM(D4:D6) -> 2204166.667 | F3: Posizione Finanziaria Netta | G3: =SUM(G4:G5) -> 6714883.72
C4: =+'Fasi 1-5'!C2 -> Brevetti | D4: =+'Fasi 1-5'!D2-'Fasi 1-5'!E2/12*'Fase 6 CE'!F2 -> 487500 | F4: Pos. Finanziaria Netta a M/L | G4: =+'Fasi 1-5'!D5-('Fase 6 Budget di Cassa'!B11*'Fase 6 CE'!F2) -> 2158757.209
C5: =+'Fasi 1-5'!C3 -> Impianti | D5: =+'Fasi 1-5'!D3-('Fasi 1-5'!E3/12*'Fase 6 CE'!F2) -> 950000 | F5: Pos. Finanziaria Netta a Breve | G5: =+D15-G4-G11 -> 4556126.512
C6: =+'Fasi 1-5'!C4 -> Attrezzature | D6: =+'Fasi 1-5'!D4-('Fasi 1-5'!E4/12*'Fase 6 CE'!F2) -> 766666.6667
C8: Capitale Circolante | D8: =SUM(D9:D13) -> 3992551.575 | F8: Posizione Tributaria Netta | G8: 0
C9: =+'Fasi 1-5'!C56 -> Crediti V/Clienti | D9: =+'Fasi 1-5'!D56 -> 3594595.251
C10: =+'Fasi 1-5'!C50 -> Magazzino Mat. Prima | D10: =+'Fasi 1-5'!D50 -> 893700.5338
C11: =+'Fasi 1-5'!C53 -> Magazzino P. Finito | D11: =+'Fasi 1-5'!D53 -> 706768.773 | F11: Mezzi Propri | G11: =+G12+G13 -> -518165.4788
C12: Credito Iva | D12: =+IVA!H9 -> 993366.3195 | F12: Equity | G12: 500000
C13: =+'Fasi 1-5'!C59 -> Debiti V/Fornitori | D13: =-'Fasi 1-5'!D59 -> -2195879.302 | F13: Utile dell'esercizio | G13: =+'Fase 6 CE'!D30 -> -1018165.479
C15: Totale Investimenti | D15: =+D3+D8 -> 6196718.242 | F15: Totale Coperture | G15: =+G5+G11+G4 -> 6196718.242

Sheet Fase 7 - 7c-d
B1: Fase 7a | C1: Conto Economico al Momento 1
C3: Fatturato | D3: =+'Fasi 1-5'!D46-'Fase 8'!D11 -> 8839168.65
C4: Variazione Magazzino P.F. | D4: =+'Fase 8'!D11 -> 706768.773
C5: Valore della Produzione | D5: =+D3+D4 -> 9545937.423
C7: =+'Fasi 1-5'!C19 -> Costo del Filato | D7: =-D3*'Fasi 1-5'!E19-D4*'Fasi 1-5'!E29-D11*'Fasi 1-5'!F29 -> -7733946.927
C8: =+'Fasi 1-5'!C20 -> Costo dell'energia | D8: =-D3*'Fasi 1-5'!E20-D4*'Fasi 1-5'!E30 -> -824954.3389
C9: =+'Fasi 1-5'!C21 -> Provvigioni | D9: =-($D$5)*'Fasi 1-5'!E21*'Fasi 1-5'!D36 -> -707133.492
C10: =+'Fasi 1-5'!C22 -> Imballaggi | D10: =-D3*'Fasi 1-5'!E22-'Fase 7 - 7c-d'!D4*'Fasi 1-5'!E31-D11*'Fasi 1-5'!F31 -> -309357.8771
C11: Variazione Magazzino M.P. | D11: ='Fase 8'!D10 -> 893700.5338
C12: Costi Variabili | D12: =SUM(D7:D11) -> -8681692.101 | F12: =+D5+D12 -> 864245.322 | G12: =+F12/D5 -> 0.09053540619
C13: =+'Fasi 1-5'!C10 -> Costo del lavoro | D13: =-'Fasi 1-5'!D10 -> -200000
C14: =+'Fasi 1-5'!C11 -> Utenze | D14: =-'Fasi 1-5'!D11 -> -10000
C15: =+'Fasi 1-5'!C12 -> Manutenzioni | D15: =-'Fasi 1-5'!D12 -> -50000
C16: =+'Fasi 1-5'!C13 -> Assicurazioni | D16: =-'Fasi 1-5'!D13 -> -25000
C17: =+'Fasi 1-5'!C14 -> Consulenze | D17: =-'Fasi 1-5'!D14 -> -30000
C18: Costi Fissi | D18: =SUM(D13:D17) -> -315000
C19: EBITDA/MOL | D19: =+D3+D12+D18+D4 -> 549245.322
C20: Ammortamenti | D20: =-'Fasi 1-5'!E5 -> -191666.6667
C21: EBIT/Red.Operativo | D21: =+D19+D20 -> 357578.6554
C22: Interessi passivi a lungo | D22: =+'Fasi 1-5'!F7 -> -115000
B25: Fase 7b | C25: Interessi passivi a breve | D25: =-'Fase 7b'!C27 -> -151759.7396 | E25: 0.05 | F25: su PFN a Breve Iniziale
C26: Utile Ante Imposte | D26: =+D21+D22+D25 -> 90818.91576
B29: Fase 7c | C29: Imposte | D29: =-(G29*D26+G30*(+D26-D25-D22)) -> -35742.10734 | F29: IRES | G29: 0.24
C30: Utile Netto | D30: =+D26+D29 -> 55076.80842 | F30: IRAP | G30: 0.039

Sheet Fase 7b
B3: Proxy PFN Finale
A4: 1 | B4: PFN Iniziale | C4: 0
B6: Flussi di Cassa
B7: Mol | C7: =+'Fase 7 - 7c-d'!D19 -> 549245.322
B8: CCNC Iniziale | C8: 0
B9: CCNC Finale | C9: =+'Fase 8'!D8 -> 3686954.532
B10: Delta CCNC | C10: =+C8-C9 -> -3686954.532
A11: A | B11: Cash Flow operativo | C11: =+C7+C10 -> -3137709.21
B12: Ammortamenti | C12: =+'Fase 7 - 7c-d'!D20 -> -191666.6667
B13: Investimenti Netti Iniziali | C13: 0
B14: Investimenti Netti Finali | C14: =+'Fasi 1-5'!D5-'Fasi 1-5'!E5 -> 2108333.333
B15: Delta Investimenti | C15: =+C14-C13 -> 2108333.333
A16: B | B16: Flusso per Investimenti | C16: =+C12-C15 -> -2300000
B17: Flusso per Debito a Medio Lungo | C17: =+'Fasi 1-5'!D7 -> -397485.5824
B18: Erogazioni a medio lungo | C18: =+'Fasi 1-5'!D5 -> 2300000
A19: C | B19: Flusso netto debito a M/L | C19: =+C17+C18 -> 1902514.418
A20: D | B20: Cash Flow Fiscale | C20: 0
A21: E | B21: Flusso Equity | C21: =+'Fase 6 SP'!G12 -> 500000
A23: 2 = A+B+C+D+E | B23: Flussi in uscita | C23: =+C11+C16+C19+C20+C21 -> -3035194.792
A25: 1+2 | B25: PFN a Breve Finale pre Oneri Finanziari | C25: =+C4-C23 -> 3035194.792
B27: Oneri Finanziari | C27: =+AVERAGE(C25)*D27 -> 151759.7396 | D27: 0.05
B29: PFN a Breve Finale post Oneri Finanziari | C29: =+C25+C27 -> 3186954.532

Sheet Fase 8
B1: Fase 8 | C1: Investimenti e Coperture al Momento 1
C3: Attivo Immobilizzato | D3: =+SUM(D4:D6) -> 2108333.333 | F3: Posizione Finanziaria Netta | G3: =SUM(G4:G5) -> 5204468.95
C4: =+'Fase 6 SP'!C4 -> Brevetti | D4: =+'Fasi 1-5'!D2-'Fasi 1-5'!E2 -> 475000 | F4: Pos. Finanziaria Netta a M/L | G4: =+'Fasi 1-5'!D5+'Fasi 1-5'!E7 -> 2017514.418
C5: =+'Fase 6 SP'!C5 -> Impianti | D5: =+'Fasi 1-5'!D3-'Fasi 1-5'!E3 -> 900000 | F5: Pos. Finanziaria Netta a Breve | G5: =+'Fase 7b'!C29 -> 3186954.532
C6: =+'Fase 6 SP'!C6 -> Attrezzature | D6: =+'Fasi 1-5'!D4-'Fasi 1-5'!E4 -> 733333.3333
C8: =+'Fase 6 SP'!C8 -> Capitale Circolante | D8: =SUM(D9:D13) -> 3686954.532 | F8: Posizione Tributaria Netta | G8: =-'Fase 7 - 7c-d'!D29 -> 35742.10734
C9: =+'Fase 6 SP'!C9 -> Crediti V/Clienti | D9: =+'Fase 6 SP'!D9 -> 3594595.251
C10: =+'Fase 6 SP'!C10 -> Magazzino Mat. Prima | D10: =+'Fase 6 SP'!D10 -> 893700.5338 | F10: Mezzi Propri | G10: =+G11+G12 -> 555076.8084
C11: =+'Fase 6 SP'!C11 -> Magazzino P. Finito | D11: =+'Fase 6 SP'!D11 -> 706768.773 | F11: Equity | G11: =+'Fase 6 SP'!G12 -> 500000
C12: Credito Iva | D12: =+IVA!N9 -> 687769.2766 | F12: Utile dell'esercizio | G12: =+'Fase 7 - 7c-d'!D30 -> 55076.80842
C13: =+'Fase 6 SP'!C13 -> Debiti V/Fornitori | D13: =+'Fase 6 SP'!D13 -> -2195879.302
C14: Totale Investimenti | D14: =+D3+D8 -> 5795287.865 | F14: Totale Coperture | G14: =+G8+G10+G3 -> 5795287.865

Sheet Fase 9
B1: Fase 9 | C1: Rendiconto Finanziario (Determ. Cash Flow)
D2: Anno 1
C4: EBITDA/M.O.L. | D4: =+'Fase 7 - 7c-d'!D19 -> 549245.322
C5: CCNC Iniziale | D5: 0
C6: CCNC Finale | D6: =+'Fase 8'!D8 -> 3686954.532
C7: Variazione Circolante | D7: =+D6-D5 -> 3686954.532
C9: CASH FLOW OPERATIVO | D9: =+D4-D7 -> -3137709.21
C11: Ammortamenti | D11: =+'Fase 7 - 7c-d'!D20 -> -191666.6667
C12: Investimenti Iniziali | D12: 0
C13: Investimenti Finali | D13: =+'Fase 8'!D3 -> 2108333.333
C14: Investimenti a patrimonio | D14: =+D13-D12 -> 2108333.333
C15: Flusso di Cassa per investimenti | D15: =+D14-D11 -> 2300000
C17: CASH FLOW DISPONIBILE | D17: =+D9-D15 -> -5437709.21
C19: Interessi Passivi netti | D19: =+'Fase 7 - 7c-d'!D22+'Fase 7 - 7c-d'!D25 -> -266759.7396
C20: PFN Iniziale | D20: 0
C21: PFN Finale | D21: =+'Fase 8'!G3 -> 5204468.95
C22: Variazione dell'indebitamento finanziario | D22: =+D21-D20 -> 5204468.95
C23: Cash Flow per il servizio del debito | D23: =+D22+D19 -> 4937709.21
C25: Cash Flow per la gestione straordinaria | D25: 0
C27: Imposte d'esercizio | D27: =+'Fase 7 - 7c-d'!D29 -> -35742.10734
C28: PTN Iniziale | D28: 0
C29: PTN Finale | D29: =+'Fase 8'!G8 -> 35742.10734
C30: Variazione debiti fiscali | D30: =+D29-D28 -> 35742.10734
C31: Cash Flow Fiscale | D31: =+D27+D30 -> 0
C33: Utile | D33: =+D4+D11+D19+D25+D27 -> 55076.80842
C34: Equity Iniziale | D34: 0
C35: Equity Finale | D35: =+D6+D13-D21-D29 -> 555076.8084
C36: Variazione dei mezzi propri | D36: =D35-D34 -> 555076.8084
C37: CASH FLOW DALLA PROPRIETA' | D37: =D36-D33 -> 500000

Sheet Fase 10
B2: Fase 10 | C2: MdC | D2: =+'Fasi 1-5'!D38 -> 0.09053540619
C3: Costi Fissi Operativi | D3: =+'Fasi 1-5'!D40 -> 315000
C4: Valore della Produzione | D4: =+'Fasi 1-5'!D46 -> 9545937.423
C5: Interessi Passivi | D5: =+'Fase 7 - 7c-d'!D22+'Fase 7 - 7c-d'!D25 -> -266759.7396
C6: PFN | D6: =+'Fase 8'!G3 -> 5204468.95
